bitfinex/quotes_BTCUSD_20260110
["timestamp","ask_amount","ask_price","bid_price","bid_amount"]
[1768019903409,0.10813002,90501.0,90495.0,0.06575731]
[1768019903652,0.03,90500.0,90495.0,0.06575731]
[1768019903813,0.04104972,90500.0,90495.0,0.06575731]
[1768019904012,0.03,90500.0,90495.0,0.06575731]
[1768019905393,0.03,90497.0,90495.0,0.02046179]
[1768019905873,0.03,90497.0,90496.0,0.04529552]
[1768019906478,0.03,90500.0,90496.0,0.04529552]
[1768019907110,0.03,90500.0,90481.0,0.07978461]
[1768019907111,0.01186426,90490.0,90481.0,0.07978461]
[1768019907387,0.01186426,90490.0,90472.0,0.0001528]
[1768019907388,0.03,90485.0,90472.0,0.0001528]
[1768019907562,0.03,90483.0,90469.0,0.00023362]
[1768019907772,0.04105179,90483.0,90470.0,0.38063636]
[1768019908060,0.04105204,90481.0,90470.0,0.38063636]
[1768019908219,0.03,90478.0,90471.0,0.02212]
[1768019908420,0.03,90478.0,90470.0,0.38063636]
[1768019908626,0.03,90478.0,90471.0,0.04529552]
[1768019908962,0.01105204,90481.0,90478.0,0.000999]
[1768019909110,0.01105204,90481.0,90471.0,0.04529552]
[1768019909313,0.03,90473.0,90469.0,0.00023362]
[1768019909530,0.06631596,90476.0,90473.0,4.125e-05]
[1768019909802,0.01105314,90472.0,90469.0,0.04552914]
[1768019910149,0.01105314,90472.0,90469.0,0.00023362]
[1768019910374,0.03,90470.0,90469.0,0.00023362]
[1768019910633,0.01105314,90472.0,90469.0,1e-08]
[1768019911004,0.05526693,90470.0,90469.0,1e-08]
[1768019911174,0.06632004,90472.0,90469.0,1e-08]
[1768019911381,0.15234735,90470.0,90469.0,1e-08]
[1768019913700,0.09708042,90470.0,90469.0,1e-08]
[1768019915597,0.03,90474.0,90469.0,1e-08]
[1768019915807,0.03,90472.0,90469.0,0.04720659]
[1768019917060,0.03,90470.0,90469.0,1e-08]
[1768019919263,0.09708042,90471.0,90469.0,1e-08]
[1768019920775,0.15234683,90471.0,90469.0,1e-08]
[1768019921952,0.06631888,90472.0,90469.0,1e-08]
[1768019922156,0.12708042,90470.0,90469.0,1e-08]
[1768019925796,0.12608142,90470.0,90469.0,1e-08]
[1768019925973,0.09839709,90470.0,90469.0,1e-08]
[1768019928921,0.15366402,90470.0,90469.0,1e-08]
[1768019929304,0.09839709,90470.0,90469.0,1e-08]
[1768019929444,0.15366402,90470.0,90469.0,1e-08]
[1768019932578,0.09839709,90470.0,90469.0,1e-08]
[1768019932903,0.15366402,90470.0,90469.0,1e-08]
[1768019933434,0.09839709,90470.0,90469.0,1e-08]
[1768019934181,0.09830706,90470.0,90469.0,1e-08]
[1768019937106,0.01105241,90478.0,90469.0,1e-08]
[1768019937302,0.03,90477.0,90469.0,0.04683969]
[1768019939263,0.03,90476.0,90469.0,0.04683969]
[1768019940301,0.03,90479.0,90469.0,0.04683969]
[1768019941032,0.04105228,90479.0,90469.0,0.04683969]
[1768019941437,0.03,90477.0,90469.0,0.04683969]
[1768019942403,0.03,90476.0,90469.0,0.04683969]
[1768019943660,0.03,90475.0,90469.0,0.04683969]
[1768019944926,0.03,90478.0,90469.0,0.04683969]
[1768019946185,0.03,90477.0,90469.0,0.04683969]
[1768019947231,0.03,90476.0,90469.0,0.04683969]
[1768019948397,0.03,90475.0,90469.0,0.04683969]
[1768019949587,0.03,90474.0,90469.0,0.04683969]
[1768019950619,0.03,90478.0,90469.0,0.04683969]
[1768019952667,0.04105241,90478.0,90469.0,0.04683969]
[1768019953478,0.03,90478.0,90469.0,0.04683969]
[1768019953701,0.03,90477.0,90469.0,0.04683969]
[1768019954533,0.03,90476.0,90469.0,0.04683969]
[1768019955619,0.03,90479.0,90469.0,0.04683969]
[1768019958184,0.00988686,90480.0,90469.0,0.04683969]
[1768019961160,0.03,90480.0,90474.0,0.01105289]
[1768019961343,0.03,90480.0,90474.0,0.04889817]
[1768019962195,0.03,90479.0,90474.0,0.04889817]
[1768019963191,0.03,90478.0,90474.0,0.04889817]
[1768019964316,0.03,90477.0,90474.0,0.04889817]
[1768019965595,0.03,90476.0,90474.0,0.04889817]
[1768019966434,0.03,90475.0,90474.0,0.04889817]
[1768019966576,7.01e-05,90481.0,90474.0,0.04889817]
[1768019967002,7.01e-05,90481.0,90477.0,0.04889817]
[1768019967344,7.01e-05,90481.0,90479.0,0.04889817]
[1768019967723,0.04105082,90491.0,90481.0,0.04889817]
[1768019967945,0.03,90491.0,90481.0,0.04920621]
[1768019968148,0.03,90491.0,90481.0,0.04820721]
[1768019968149,0.03,90487.0,90481.0,0.04820721]
[1768019969275,0.03,90486.0,90481.0,0.04820721]
[1768019970281,0.03,90485.0,90481.0,0.04820721]
[1768019971283,0.03,90489.0,90481.0,0.04820721]
[1768019971661,0.04105106,90489.0,90481.0,0.04820721]
[1768019973085,0.03,90489.0,90481.0,0.04820721]
[1768019973290,0.04105106,90489.0,90481.0,0.04820721]
[1768019974940,0.03,90489.0,90481.0,0.04820721]
[1768019975346,0.04105106,90489.0,90481.0,0.04820721]
[1768019977766,0.03,90487.0,90481.0,0.04820721]
[1768019978919,0.03,90486.0,90481.0,0.04820721]
[1768019979704,0.03,90488.0,90481.0,0.04820721]
[1768019980108,0.04105118,90488.0,90481.0,0.04820721]
[1768019980310,0.03,90488.0,90481.0,0.04820721]
[1768019980730,0.04105118,90488.0,90481.0,0.04820721]
[1768019981249,0.03,90488.0,90481.0,0.04820721]
[1768019983311,0.04105118,90488.0,90481.0,0.04820721]
[1768019983512,0.03,90486.0,90481.0,0.04820721]
[1768019984568,0.03,90485.0,90481.0,0.04820721]
[1768019985849,0.04105106,90489.0,90481.0,0.04820721]
[1768019986982,0.03,90489.0,90481.0,0.04820721]
[1768019987183,0.03,90488.0,90481.0,0.04820721]
[1768019988213,0.04105106,90489.0,90481.0,0.04820721]
[1768019989782,0.03,90488.0,90481.0,0.04820721]
[1768019990935,0.03,90487.0,90481.0,0.04820721]
[1768019991840,0.0110507,90492.0,90481.0,0.04820721]
[1768019991841,0.03,90486.0,90481.0,0.04820721]
[1768019992838,0.03,90485.0,90481.0,0.04820721]
[1768019994059,0.03,90489.0,90481.0,0.04820721]
[1768020000728,0.03,90488.0,90481.0,0.04820721]
[1768020001870,0.03,90487.0,90481.0,0.0003527]
[1768020002880,0.03,90486.0,90481.0,0.0003527]
[1768020003916,0.03,90485.0,90481.0,0.0003527]
[1768020005018,0.03,90484.0,90481.0,0.0003527]
[1768020006090,0.04105118,90488.0,90481.0,0.0003527]
[1768020006710,0.03,90488.0,90481.0,0.0003527]
[1768020008607,0.03,90487.0,90481.0,0.0003527]
[1768020009702,0.04105106,90489.0,90481.0,0.0003527]
[1768020012369,0.03,90489.0,90481.0,0.0003527]
[1768020014583,0.04105106,90489.0,90481.0,0.0003527]
[1768020014764,0.03,90489.0,90481.0,0.0003527]
[1768020015912,0.04105106,90489.0,90481.0,0.0003527]
[1768020018263,0.03,90489.0,90481.0,0.0003527]
[1768020018446,0.04105106,90489.0,90481.0,0.0003527]
[1768020019598,0.03,90487.0,90481.0,0.0003527]
[1768020020650,0.03,90488.0,90481.0,0.0003527]
[1768020021540,0.04105118,90488.0,90481.0,0.0003527]
[1768020021954,0.03,90488.0,90481.0,0.0003527]
[1768020022194,0.04105118,90488.0,90481.0,0.0003527]
[1768020022424,0.03,90488.0,90481.0,0.0003527]
[1768020022636,0.01105143,90486.0,90481.0,0.0003527]
[1768020022812,0.03,90485.0,90481.0,0.0003527]
[1768020023784,0.03,90484.0,90481.0,0.0003527]
[1768020024407,0.01105118,90488.0,90484.0,0.000999]
[1768020024640,0.01105131,90487.0,90484.0,0.000999]
[1768020025004,0.03,90487.0,90484.0,0.000999]
[1768020025209,0.03,90487.0,90481.0,0.0003527]
[1768020025777,0.07573292,90483.0,90481.0,0.0003527]
[1768020025985,0.04473392,90483.0,90481.0,0.0003527]
[1768020026622,0.0567841,90488.0,90481.0,0.0003527]
[1768020026817,0.03,90487.0,90481.0,0.0003527]
[1768020028106,0.03,90486.0,90481.0,0.04544803]
[1768020028316,0.03,90486.0,90481.0,0.0003527]
[1768020029094,0.03,90485.0,90481.0,0.0003527]
[1768020030225,0.03,90484.0,90481.0,0.0003527]
[1768020031280,0.03,90487.0,90481.0,0.0003527]
[1768020031905,0.04105131,90487.0,90481.0,0.0003527]
[1768020032132,0.03,90485.0,90481.0,0.0003527]
[1768020033074,0.03,90484.0,90481.0,0.0003527]
[1768020034168,0.03,90486.0,90481.0,0.0003527]
[1768020037922,0.03,90485.0,90481.0,0.04641841]
[1768020038975,0.03,90484.0,90481.0,0.04641841]
[1768020040127,0.03,90487.0,90481.0,0.04641841]
[1768020044343,0.03,90486.0,90481.0,0.04641841]
[1768020045641,0.03,90485.0,90481.0,0.04641841]
[1768020046751,0.03,90484.0,90481.0,0.04641841]
[1768020047868,0.03,90483.0,90481.0,0.04641841]
[1768020048987,0.03,90487.0,90481.0,0.04641841]
[1768020049215,0.03,90485.0,90481.0,0.04641841]
[1768020049433,0.03,90485.0,90481.0,0.00030803]
[1768020050387,0.03,90486.0,90481.0,0.00030803]
[1768020051755,0.03,90485.0,90481.0,0.00030803]
[1768020053077,0.03,90487.0,90481.0,0.00030803]
[1768020053983,0.03,90486.0,90481.0,0.00030803]
[1768020055107,0.03,90488.0,90481.0,0.00030803]
[1768020055990,0.03,90487.0,90481.0,0.00030803]
[1768020057314,0.03,90488.0,90481.0,0.00030803]
[1768020058498,0.03,90487.0,90481.0,0.00030803]
[1768020059443,0.03,90486.0,90481.0,0.0470585]
[1768020060757,0.03,90485.0,90481.0,0.0470585]
[1768020061880,0.01120325,90494.0,90481.0,0.04701383]
[1768020062479,0.0001528,90494.0,90481.0,0.04701383]
[1768020062684,0.04120325,90494.0,90481.0,0.04701383]
[1768020062886,0.04111318,90494.0,90481.0,0.04701383]
[1768020063068,0.03,90492.0,90481.0,0.04701383]
[1768020063270,0.0410507,90492.0,90481.0,0.04701383]
[1768020063881,0.03,90490.0,90481.0,0.04701383]
[1768020064302,0.03,90490.0,90481.0,0.05806587]
[1768020064783,0.03,90489.0,90481.0,0.05806587]
[1768020065239,0.03,90489.0,90482.0,0.01105192]
[1768020065405,0.03,90489.0,90481.0,0.05806587]
[1768020065999,0.03,90488.0,90481.0,0.04701383]
[1768020066971,0.03,90493.0,90481.0,0.04701383]
[1768020067364,0.04105057,90493.0,90481.0,0.04701383]
[1768020068756,0.03,90492.0,90481.0,0.04701383]
[1768020068938,0.03,90492.0,90481.0,0.05806587]
[1768020069892,0.03006273,90494.0,90481.0,0.05806587]
[1768020070108,0.03006273,90494.0,90482.0,0.01105192]
[1768020070311,0.03006273,90494.0,90481.0,0.05806587]
[1768020070516,0.03006273,90494.0,90481.0,0.04701383]
[1768020070728,0.03006273,90494.0,90481.0,0.05806587]
[1768020070876,0.03006273,90494.0,90482.0,0.01105192]
[1768020075988,0.03006273,90494.0,90483.0,0.01105179]
[1768020076832,0.03,90493.0,90489.0,0.04773131]
[1768020077036,0.07617443,90493.0,90487.0,0.01105131]
[1768020077242,0.06644874,90504.0,90483.0,0.3464442]
[1768020077243,0.0001528,90504.0,90492.0,0.04773131]
[1768020077519,0.0001528,90504.0,90494.0,0.01105045]
[1768020077656,0.0001528,90504.0,90495.0,0.01105033]
[1768020077856,0.0001528,90504.0,90495.0,0.05878164]
[1768020078329,0.0001528,90504.0,90495.0,0.08090164]
[1768020078556,0.0001528,90504.0,90495.0,0.08085696]
[1768020078962,0.0001528,90504.0,90495.0,0.06985131]
[1768020079170,0.0001528,90504.0,90495.0,0.08090164]
[1768020080833,0.0001528,90504.0,90496.0,0.01105021]
[1768020081232,0.0001528,90504.0,90495.0,0.08090164]
[1768020081490,0.0001528,90504.0,90496.0,0.01105021]
[1768020082556,0.0001528,90504.0,90495.0,0.08090164]
[1768020083475,0.0001528,90504.0,90495.0,0.06985131]
[1768020087144,0.0001528,90504.0,90495.0,0.08090164]
[1768020087592,0.0001528,90504.0,90495.0,0.06985131]
[1768020088253,0.0001528,90504.0,90495.0,0.08090164]
[1768020089435,0.0001528,90504.0,90495.0,0.06985131]
[1768020090511,0.0301528,90504.0,90495.0,0.06985131]
[1768020091299,0.0301528,90504.0,90495.0,0.02212]
[1768020091300,0.03,90502.0,90495.0,0.02212]
[1768020091524,0.03,90498.0,90495.0,0.02212]
[1768020091901,0.03,90498.0,90496.0,0.04773131]
[1768020092502,0.0001528,90504.0,90496.0,0.04773131]
[1768020107825,0.0001528,90504.0,90496.0,0.04768663]
[1768020108029,0.0001528,90504.0,90495.0,0.03317033]
[1768020108231,0.03,90500.0,90495.0,0.03317033]
[1768020108371,0.03,90498.0,90495.0,0.03317033]
[1768020109440,0.03,90498.0,90495.0,0.02212]
[1768020109641,0.03,90498.0,90495.0,0.03317033]
[1768020111667,0.03,90497.0,90495.0,0.03317033]
[1768020111812,0.03,90497.0,90495.0,0.02212]
[1768020112877,0.03,90502.0,90495.0,0.03317033]
[1768020113280,0.03,90502.0,90496.0,0.01105021]
[1768020114010,0.03,90501.0,90496.0,0.01105021]
[1768020114439,0.03,90501.0,90496.0,0.04706816]
[1768020115025,0.0001528,90504.0,90496.0,0.04706816]
[1768020116278,0.07848974,90502.0,90495.0,0.03317033]
[1768020116482,0.03,90502.0,90495.0,0.02212]
[1768020117432,0.03,90501.0,90495.0,0.02212]
[1768020118834,0.0001528,90504.0,90495.0,0.02212]
[1768020119501,0.0001528,90504.0,90495.0,0.03317033]
[1768020120836,0.0001528,90504.0,90495.0,0.03312565]
[1768020121136,0.0001528,90504.0,90495.0,0.02207532]
[1768020121296,0.0001528,90504.0,90495.0,0.03312565]
[1768020121522,0.0001528,90504.0,90496.0,0.01105021]
[1768020122400,0.0001528,90504.0,90495.0,0.03312565]
[1768020122648,0.0001528,90504.0,90496.0,0.01105021]
[1768020123177,0.04924477,90503.0,90496.0,0.01105021]
[1768020123354,0.03,90502.0,90496.0,0.01105021]
[1768020123557,0.07924477,90502.0,90496.0,0.01105021]
[1768020126352,0.0001528,90504.0,90496.0,0.01105021]
[1768020127450,0.0001528,90504.0,90496.0,0.06067034]
[1768020129213,0.0001528,90504.0,90496.0,0.04962013]
[1768020129591,0.0001528,90504.0,90496.0,0.06067034]
[1768020135296,0.0001528,90504.0,90496.0,0.01105021]
[1768020135603,0.03,90503.0,90496.0,0.01105021]
[1768020136841,0.03,90502.0,90496.0,0.06067034]
[1768020138176,0.07924477,90499.0,90496.0,0.01105021]
[1768020138835,0.03,90499.0,90496.0,0.01105021]
[1768020139396,0.03,90503.0,90496.0,0.01105021]
[1768020141624,0.03,90502.0,90496.0,0.01105021]
[1768020143136,0.03,90501.0,90497.0,0.04962013]
[1768020144305,0.0001528,90504.0,90497.0,0.04962013]
[1768020144921,0.0001528,90504.0,90501.0,0.04962013]
[1768020145132,0.0001528,90504.0,90503.0,0.04962013]
[1768020146913,0.0001528,90504.0,90502.0,0.02212]
[1768020151702,0.0001528,90504.0,90503.0,0.04962013]
[1768020158309,0.0301528,90513.0,90503.0,0.04962013]
[1768020158523,0.03,90508.0,90502.0,0.02212]
[1768020158744,0.04806164,90507.0,90502.0,0.02212]
[1768020158972,0.03,90504.0,90502.0,0.02212]
[1768020159841,0.03,90503.0,90502.0,0.069988]
[1768020161057,0.0301528,90513.0,90502.0,0.069988]
[1768020161440,0.04120093,90513.0,90502.0,0.069988]
[1768020162122,0.03,90511.0,90502.0,0.069988]
[1768020163131,0.03,90510.0,90502.0,0.069988]
[1768020164307,0.0301528,90513.0,90502.0,0.069988]
[1768020167396,0.03,90512.0,90502.0,0.069988]
[1768020168372,0.0301528,90513.0,90502.0,0.069988]
[1768020170074,0.0001528,90513.0,90502.0,0.069988]
[1768020178018,0.0301528,90513.0,90502.0,0.08103747]
[1768020178171,0.0301528,90513.0,90502.0,0.069988]
[1768020179226,0.0001528,90513.0,90502.0,0.069988]
[1768020181837,0.07970921,90509.0,90502.0,0.02212]
[1768020183152,0.03,90508.0,90502.0,0.02212]
[1768020184132,0.0001528,90513.0,90502.0,0.02212]
[1768020189672,0.0301528,90513.0,90506.0,0.01104899]
[1768020189876,0.0301528,90513.0,90503.0,0.10506847]
[1768020190083,0.0301528,90513.0,90504.0,0.04982228]
[1768020190310,0.0301528,90513.0,90504.0,0.06087151]
[1768020190488,0.0301528,90513.0,90504.0,0.04982228]
[1768020190754,0.03,90512.0,90504.0,0.06087151]
[1768020191233,0.03,90512.0,90505.0,0.01104911]
[1768020191437,0.03,90512.0,90504.0,0.06087151]
[1768020191647,0.03,90512.0,90508.0,0.04982228]
[1768020191866,0.03,90511.0,90508.0,0.04982228]
[1768020192080,0.03,90511.0,90508.0,0.0497776]
[1768020192511,0.03,90511.0,90508.0,0.06082634]
[1768020192726,0.0001528,90513.0,90508.0,0.06082634]
[1768020192938,0.0001528,90513.0,90510.0,0.04982228]
[1768020194123,0.00023472,90513.0,90510.0,0.04982228]
[1768020210035,0.03023472,90513.0,90510.0,0.04982228]
[1768020211173,0.03,90512.0,90510.0,0.04982228]
[1768020212346,0.00023472,90513.0,90510.0,0.04982228]
[1768020212846,0.00023472,90513.0,90503.0,0.04982228]
[1768020213191,0.00023472,90513.0,90499.0,0.01104984]
[1768020213192,0.00023472,90513.0,90505.0,0.06032874]
[1768020214051,0.00023472,90513.0,90505.0,0.04927963]
[1768020214426,0.00023472,90513.0,90506.0,0.01104899]
[1768020215541,0.00023472,90513.0,90507.0,0.01104886]
[1768020218638,0.00023472,90513.0,90505.0,0.04927963]
[1768020220533,0.00023472,90513.0,90505.0,0.06032874]
[1768020228496,0.00023472,90513.0,90506.0,0.01104899]
[1768020228704,0.00023472,90513.0,90505.0,0.06032874]
[1768020229755,0.00023472,90513.0,90506.0,0.01104899]
[1768020229950,0.00023472,90513.0,90505.0,0.06032874]
[1768020231499,0.00023472,90513.0,90504.0,0.01104923]
[1768020231611,0.00023472,90513.0,90503.0,0.01104935]
[1768020232604,0.03023472,90513.0,90505.0,0.01104911]
[1768020232808,0.03023472,90513.0,90504.0,0.01104923]
[1768020233015,0.03023472,90513.0,90503.0,0.01104935]
[1768020233778,0.00023472,90513.0,90503.0,0.01104935]
[1768020236255,0.00023472,90513.0,90504.0,0.01104923]
[1768020236441,0.00023472,90513.0,90502.0,0.02212]
[1768020237217,0.03023472,90513.0,90502.0,0.03316947]
[1768020237564,0.03023472,90513.0,90503.0,0.01104935]
[1768020238581,0.00023472,90513.0,90503.0,0.01104935]
[1768020240393,0.00023472,90513.0,90504.0,0.01104923]
[1768020247528,0.00023472,90513.0,90503.0,0.01104935]
[1768020247731,0.00023472,90513.0,90502.0,0.02212]
[1768020249054,0.03023472,90513.0,90502.0,0.02212]
[1768020249531,0.03023472,90513.0,90502.0,0.03316947]
[1768020249872,0.03023472,90513.0,90503.0,0.01104935]
[1768020250079,0.00023472,90513.0,90502.0,0.03316947]
[1768020250301,0.00023472,90513.0,90503.0,0.01104935]
[1768020251786,0.00023472,90513.0,90502.0,0.03316947]
[1768020251991,0.00023472,90513.0,90503.0,0.01104935]
[1768020253820,0.03,90512.0,90502.0,0.02212]
[1768020254028,0.07802966,90512.0,90502.0,0.02212]
[1768020254990,0.07802966,90512.0,90502.0,0.03316947]
[1768020255268,0.07802966,90512.0,90502.0,0.02212]
[1768020255673,0.07802966,90512.0,90502.0,0.03316947]
[1768020259007,0.03,90511.0,90502.0,0.03316947]
[1768020260328,0.00023472,90513.0,90502.0,0.03316947]
[1768020262345,0.03023472,90513.0,90502.0,0.02212]
[1768020262648,0.04128285,90513.0,90502.0,0.02212]
[1768020263667,0.03023472,90513.0,90502.0,0.02212]
[1768020263883,0.03,90511.0,90502.0,0.02212]
[1768020265060,0.03,90510.0,90502.0,0.03316947]
[1768020265370,0.03,90510.0,90502.0,0.02212]
[1768020265999,0.00023472,90513.0,90502.0,0.02212]
[1768020266426,0.00023472,90513.0,90502.0,0.03316947]
[1768020267251,0.03023472,90513.0,90502.0,0.03316947]
[1768020268182,0.03,90512.0,90503.0,0.01104935]
[1768020269551,0.03,90511.0,90503.0,0.01104935]
[1768020270107,0.03,90511.0,90504.0,0.01104923]
[1768020270652,0.03,90510.0,90504.0,0.01104923]
[1768020270856,0.03,90510.0,90505.0,0.01104911]
[1768020271050,0.00023472,90513.0,90504.0,0.01104923]
[1768020272316,0.00023472,90513.0,90503.0,0.01104935]
[1768020275213,0.00023472,90513.0,90504.0,0.01104923]
[1768020275568,0.03,90507.0,90504.0,0.01104923]
[1768020275743,0.07574809,90505.0,90504.0,0.01104923]
[1768020276544,0.03,90505.0,90504.0,0.01104923]
[1768020276690,0.03,90505.0,90503.0,0.01104935]
[1768020277075,0.00023472,90513.0,90503.0,0.01104935]
[1768020277208,0.00023472,90513.0,90504.0,0.01104923]
[1768020277944,0.00023472,90513.0,90503.0,0.01104935]
[1768020278596,0.00023472,90513.0,90502.0,0.03316947]
[1768020280218,0.00023472,90513.0,90503.0,0.01104935]
[1768020280458,0.03023472,90513.0,90503.0,0.01104935]
[1768020280878,0.03023472,90513.0,90502.0,0.03316947]
[1768020281412,0.03,90512.0,90502.0,0.03316947]
[1768020282256,0.03,90512.0,90503.0,0.01104935]
[1768020282591,0.00063436,90504.0,90503.0,0.05749163]
[1768020283079,0.00063436,90504.0,90503.0,0.04644228]
[1768020300834,0.00063436,90504.0,90502.0,0.07736729]
[1768020301079,0.00023472,90513.0,90504.0,0.01104923]
[1768020301281,0.00023472,90513.0,90503.0,0.01104935]
[1768020301484,0.00023472,90513.0,90504.0,0.01104923]
[1768020302487,0.00023472,90513.0,90502.0,0.03316947]
[1768020302858,0.03023472,90513.0,90502.0,0.02212]
[1768020304360,0.04128285,90513.0,90502.0,0.02212]
[1768020304638,0.03023472,90513.0,90502.0,0.02212]
[1768020305806,0.03,90512.0,90502.0,0.02212]
[1768020306282,0.0006295,90503.0,90502.0,0.02212]
[1768020309165,0.0006295,90503.0,90502.0,0.06717792]
[1768020309379,0.0006295,90503.0,90502.0,0.12242531]
[1768020312977,0.0006295,90503.0,90502.0,0.06717792]
[1768020317521,0.0006295,90503.0,90502.0,0.12242531]
[1768020319382,0.0006295,90503.0,90502.0,0.06717792]
[1768020320398,0.0006295,90503.0,90502.0,0.12242531]
[1768020329603,0.0006295,90503.0,90502.0,0.07736739]
[1768020332352,0.07732579,90503.0,90502.0,0.07736739]
[1768020333090,0.0306295,90503.0,90502.0,0.07736739]
[1768020334514,0.0306295,90503.0,90502.0,0.02212]
[1768020334721,0.0306295,90503.0,90502.0,0.07736739]
[1768020336746,0.0006295,90503.0,90502.0,0.07736739]
[1768020340327,0.07988181,90503.0,90502.0,0.07736739]
[1768020342828,0.0006295,90503.0,90502.0,0.07736739]
[1768020344387,0.0006295,90503.0,90502.0,0.02212]
[1768020348580,0.0006295,90503.0,90502.0,0.07736739]
[1768020354004,0.0006295,90503.0,90502.0,0.02212]
[1768020355242,0.0006295,90503.0,90502.0,0.07736739]
[1768020355581,0.0006295,90503.0,90502.0,0.02212]
[1768020358385,0.0006295,90503.0,90502.0,0.07736739]
[1768020360201,0.0006295,90503.0,90502.0,0.12446495]
[1768020363706,0.0006295,90503.0,90502.0,0.06921756]
[1768020363888,0.0006295,90503.0,90502.0,0.06821856]
[1768020372485,0.0006295,90503.0,90502.0,0.021121]
[1768020374378,0.0006295,90503.0,90499.0,0.02212]
[1768020374583,0.03,90504.0,90503.0,0.00062949]
[1768020374784,0.04764848,90505.0,90503.0,0.00062949]
[1768020378575,0.04764848,90505.0,90503.0,0.00058445]
[1768020381030,0.04764848,90512.0,90503.0,0.00058445]
[1768020381181,0.03,90511.0,90503.0,0.00058445]
[1768020381387,0.07764848,90511.0,90503.0,0.00058445]
[1768020385447,0.07764848,90511.0,90503.0,0.00053941]
[1768020387544,0.07764848,90511.0,90503.0,0.01158876]
[1768020388515,0.07764848,90511.0,90503.0,0.00053941]
[1768020391125,0.07764848,90511.0,90503.0,0.01158876]
[1768020391293,0.07764848,90511.0,90505.0,0.01104911]
[1768020391685,0.07764848,90511.0,90504.0,0.01104923]
[1768020391886,0.07764848,90511.0,90505.0,0.01104911]
[1768020392136,0.07764848,90511.0,90504.0,0.01104923]
[1768020395273,0.07764848,90511.0,90505.0,0.01104911]
[1768020395917,0.07764848,90511.0,90504.0,0.01104923]
[1768020396278,0.07764848,90511.0,90505.0,0.01104911]
[1768020396799,0.07764848,90511.0,90504.0,0.01104923]
[1768020397340,0.03,90512.0,90504.0,0.01104923]
[1768020397861,0.03,90512.0,90505.0,0.01104911]
[1768020398441,0.03,90512.0,90504.0,0.01104923]
[1768020401559,0.03,90512.0,90505.0,0.01104911]
[1768020401839,0.03,90512.0,90504.0,0.01104923]
[1768020404992,0.03,90512.0,90503.0,0.01104935]
[1768020407190,0.03,90512.0,90504.0,0.01104923]
[1768020407386,0.03,90512.0,90503.0,0.01104935]
[1768020408167,0.03,90512.0,90504.0,0.01104923]
[1768020408634,0.03,90512.0,90503.0,0.01104935]
[1768020410265,0.03,90512.0,90502.0,0.01104947]
[1768020410469,0.03,90512.0,90503.0,0.01104935]
[1768020411291,0.03,90512.0,90502.0,0.01104947]
[1768020411677,0.03,90512.0,90503.0,0.01104935]
[1768020413637,0.03,90512.0,90504.0,0.01104923]
[1768020413819,0.03,90512.0,90503.0,0.01104935]
[1768020413980,0.03,90512.0,90502.0,0.01104947]
[1768020414178,0.03,90512.0,90503.0,0.01104935]
[1768020417148,0.03,90512.0,90502.0,0.01104947]
[1768020417564,0.03,90512.0,90503.0,0.01104935]
[1768020417764,0.03,90512.0,90502.0,0.01104947]
[1768020418369,0.03,90512.0,90503.0,0.01104935]
[1768020419082,0.03,90512.0,90501.0,0.0110496]
[1768020419288,0.03,90512.0,90502.0,0.01104947]
[1768020420745,0.03,90512.0,90499.0,0.08195355]
[1768020421275,0.03,90512.0,90501.0,0.0110496]
[1768020421597,0.03,90512.0,90502.0,0.01104947]
[1768020421896,0.03,90512.0,90501.0,0.0110496]
[1768020423874,0.03,90512.0,90502.0,0.01104947]
[1768020424085,0.03,90512.0,90501.0,0.0110496]
[1768020425284,0.03,90512.0,90502.0,0.01104947]
[1768020426565,0.03,90512.0,90501.0,0.0110496]
[1768020427136,0.03,90512.0,90500.0,0.01104972]
[1768020427349,0.03,90512.0,90500.0,0.33524666]
[1768020427550,0.04104825,90512.0,90500.0,0.33524666]
[1768020427755,0.03,90512.0,90500.0,0.33524666]
[1768020428058,0.03,90512.0,90499.0,0.08195355]
[1768020428258,0.03,90512.0,90501.0,0.0110496]
[1768020428459,0.03,90512.0,90500.0,0.01104972]
[1768020429283,0.03,90512.0,90501.0,0.0110496]
[1768020430867,0.03,90510.0,90499.0,0.07090371]
[1768020431065,0.03,90510.0,90499.0,0.02212]
[1768020432361,0.03,90509.0,90499.0,0.02212]
[1768020433104,0.03,90509.0,90499.0,0.03316984]
[1768020433791,0.03,90508.0,90499.0,0.02212]
[1768020433993,0.03,90508.0,90499.0,0.03316984]
[1768020434995,0.03,90507.0,90499.0,0.03316984]
[1768020436227,0.03,90512.0,90499.0,0.03316984]
[1768020436643,0.03,90512.0,90499.0,0.03044786]
[1768020436772,0.03,90512.0,90499.0,0.02504725]
[1768020439566,0.03,90512.0,90500.0,0.01104972]
[1768020439738,0.03,90512.0,90500.0,0.05703185]
[1768020439978,0.03,90510.0,90500.0,0.04598213]
[1768020441186,0.03,90509.0,90500.0,0.04598213]
[1768020442708,0.03,90508.0,90500.0,0.04598213]
[1768020443651,0.03,90508.0,90500.0,0.05703185]
[1768020444111,0.03,90507.0,90500.0,0.04598213]
[1768020444609,0.03,90507.0,90500.0,0.05703185]
[1768020445121,0.03,90506.0,90500.0,0.04598213]
[1768020445499,0.03,90506.0,90499.0,0.02504725]
[1768020446454,0.03,90505.0,90499.0,0.02504725]
[1768020447040,0.07991643,90513.0,90499.0,0.02504725]
[1768020447906,0.07991643,90513.0,90500.0,0.01104972]
[1768020448822,0.07991643,90513.0,90499.0,0.02504725]
[1768020449032,0.03,90512.0,90500.0,0.01104972]
[1768020449602,0.03,90512.0,90499.0,0.02504725]
[1768020450229,0.03,90512.0,90499.0,0.01504725]
[1768020450881,0.03,90512.0,90500.0,0.01104972]
[1768020451315,0.03,90512.0,90499.0,0.01504725]
[1768020453489,0.03,90512.0,90500.0,0.01104972]
[1768020453696,0.03,90512.0,90499.0,0.00399741]
[1768020453897,0.03,90512.0,90499.0,0.01504725]
[1768020455063,0.03,90512.0,90500.0,0.01104972]
[1768020455564,0.03,90512.0,90499.0,0.01504725]
[1768020456489,0.03,90512.0,90500.0,0.01104972]
[1768020458616,0.03,90512.0,90499.0,0.01504725]
[1768020459030,0.03,90512.0,90500.0,0.01104972]